fUST/lending_fUST_20250929
["ID","MTS","AMOUNT","RATE_DAILY","PERIOD"]
[388378254,1759137049750,-480.88515607,0.00027397,7]
[388378255,1759137049759,-480.54220582,0.00027397,7]
[388378256,1759137049769,-351.26005947,0.00027397,7]
[388378257,1759137049779,-520.0,0.00027397,3]
[388378258,1759137049788,-480.0,0.00027397,7]
[388378259,1759137049798,-809.31,0.00027397,7]
[388378260,1759137049807,-480.0,0.00027397,7]
[388378261,1759137049816,-480.0,0.00027397,7]
[388378262,1759137049825,-480.0,0.00027397,7]
[388378263,1759137049835,-480.0,0.00027397,7]
[388378264,1759137049844,-480.0,0.00027397,7]
[388378265,1759137049854,-583.41487089,0.00027397,7]
[388378266,1759137049863,-480.0,0.00027397,7]
[388378267,1759137049873,-480.0,0.00027397,7]
[388378268,1759137049882,-480.0,0.00027397,7]
[388378269,1759137049891,-480.0,0.00027397,7]
[388378270,1759137049905,-480.0,0.00027397,7]
[388378271,1759137049914,-865.09,0.00027397,7]
[388378272,1759137049923,-480.0,0.00027397,7]
[388378273,1759137049932,-480.0,0.00027397,7]
[388378274,1759137049941,-480.0,0.00027397,7]
[388378275,1759137049950,-530.14,0.00027397,7]
[388378276,1759137049959,-480.0,0.00027397,7]
[388378277,1759137049968,-480.0,0.00027397,7]
[388378278,1759137049977,-498.65,0.00027397,7]
[388378279,1759137049986,-480.0,0.00027397,7]
[388378280,1759137049995,-480.0,0.00027397,7]
[388378281,1759137050003,-480.0,0.00027397,7]
[388378282,1759137050012,-480.0,0.00027397,7]
[388378283,1759137050022,-480.0,0.00027397,7]
[388378284,1759137050031,-630.11,0.00027397,7]
[388378285,1759137050041,-480.0,0.00027397,7]
[388378286,1759137050052,-200.0,0.00027397,7]
[388378287,1759137050061,-480.0,0.00027397,7]
[388378288,1759137050071,-480.0,0.00027397,7]
[388378289,1759137050080,-480.0,0.00027397,7]
[388378290,1759137050089,-600.0,0.00027397,7]
[388378291,1759137050098,-684.04,0.00027397,7]
[388378292,1759137050107,-480.0,0.00027397,7]
[388378293,1759137050116,-480.0,0.00027397,7]
[388378294,1759137050125,-480.0,0.00027397,7]
[388378295,1759137050134,-480.0,0.00027397,7]
[388378296,1759137050143,-390.01336953,0.00027397,7]
[388378297,1759137050152,-480.0,0.00027397,7]
[388378298,1759137050162,-480.0,0.00027397,7]
[388378299,1759137050171,-732.8,0.00027397,7]
[388378300,1759137050180,-1011.85,0.00027397,7]
[388378301,1759137050189,-480.0,0.00027397,7]
[388378302,1759137050198,-480.0,0.00027397,7]
[388378303,1759137050207,-480.0,0.00027397,7]
[388378304,1759137050216,-480.0,0.00027397,7]
[388378305,1759137050224,-480.0,0.00027397,7]
[388378306,1759137050234,-480.0,0.00027397,7]
[388378307,1759137050243,-210.77066295,0.00027397,7]
[388378308,1759137050252,-480.0,0.00027397,7]
[388378309,1759137050261,-480.0,0.00027397,7]
[388378310,1759137050269,-774.94,0.00027397,7]
[388378311,1759137050279,-748.37,0.00027397,7]
[388378312,1759137050287,-480.0,0.00027397,7]
[388378313,1759137050296,-480.0,0.00027397,7]
[388378314,1759137050305,-1529.3,0.00027397,7]
[388378315,1759137050314,-480.0,0.00027397,7]
[388378316,1759137050323,-480.0,0.00027397,7]
[388378317,1759137050332,-480.0,0.00027397,7]
[388378318,1759137050341,-778.35,0.00027397,7]
[388378319,1759137050349,-480.0,0.00027397,7]
[388378320,1759137050358,-717.85,0.00027397,7]
[388378321,1759137050367,-669.08,0.00027397,7]
[388378322,1759137050376,-480.0,0.00027397,7]
[388378323,1759137050385,-480.0,0.00027397,7]
[388378324,1759137050394,-480.0,0.00027397,7]
[388378325,1759137050403,-480.74465385,0.00027397,7]
[388378326,1759137050413,-1000.0,0.00027397,7]
[388378327,1759137050423,-480.0,0.00027397,7]
[388378328,1759137050432,-506.69,0.00027397,7]
[388378329,1759137050441,-480.0,0.00027397,7]
[388378330,1759137050450,-724.43,0.00027397,7]
[388378331,1759137050459,-480.0,0.00027397,7]
[388378332,1759137050468,-480.0,0.00027397,7]
[388378333,1759137050478,-480.0,0.00027397,7]
[388378334,1759137050487,-480.0,0.00027397,7]
[388378335,1759137050627,-480.0,0.00027397,7]
[388378336,1759137050636,-536.43,0.00027397,7]
[388378337,1759137050646,-879.25,0.00027397,7]
[388378338,1759137050655,-480.0,0.00027397,7]
[388378339,1759137050664,-480.0,0.00027397,7]
[388378340,1759137050674,-480.0,0.00027397,7]
[388378341,1759137050684,-480.0,0.00027397,7]
[388378342,1759137050693,-482.29001075,0.00027397,7]
[388378343,1759137050703,-707.92,0.00027397,7]
[388378344,1759137050712,-791.11,0.00027397,7]
[388378345,1759137050722,-480.0,0.00027397,7]
[388378346,1759137050732,-480.0,0.00027397,7]
[388378347,1759137050742,-579.78,0.00027397,7]
[388378348,1759137050751,-693.37,0.00027397,7]
[388378349,1759137050761,-402.44722605,0.00027397,7]
[388378350,1759137050771,-480.0,0.00027397,7]
[388378351,1759137050780,-601.96,0.00027397,7]
[388378352,1759137050790,-558.94,0.00027397,7]
[388378353,1759137050799,-480.0,0.00027397,7]
[388378354,1759137050808,-481.62728696,0.00027397,7]
[388378355,1759137050817,-480.0,0.00027397,7]
[388378356,1759137050826,-480.0,0.00027397,7]
[388378357,1759137050835,-484.01351364,0.00027397,7]
[388378358,1759137050845,-779.23,0.00027397,7]
[388378359,1759137050854,-480.0,0.00027397,7]
[388378360,1759137050864,-480.0,0.00027397,7]
[388378361,1759137050873,-480.0,0.00027397,7]
[388378362,1759137050882,-553.52,0.00027397,7]
[388378363,1759137050892,-480.0,0.00027397,7]
[388378364,1759137050906,-480.0,0.00027397,7]
[388378365,1759137050915,-480.0,0.00027397,7]
[388378366,1759137050924,-480.0,0.00027397,7]
[388378367,1759137050933,-480.0,0.00027397,7]
[388378368,1759137050942,-480.0,0.00027397,7]
[388378369,1759137050951,-480.0,0.00027397,7]
[388378370,1759137050960,-480.0,0.00027397,7]
[388378371,1759137050969,-692.59,0.00027397,7]
[388378372,1759137050978,-598.99,0.00027397,7]
[388378373,1759137050987,-842.22,0.00027397,7]
[388378374,1759137050996,-480.0,0.00027397,7]
[388378375,1759137051006,-480.0,0.00027397,7]
[388378376,1759137051015,-480.0,0.00027397,7]
[388378377,1759137051024,-480.0,0.00027397,7]
[388378378,1759137051032,-480.0,0.00027397,7]
[388378379,1759137051041,-683.65,0.00027397,7]
[388378380,1759137051051,-480.0,0.00027397,7]
[388378381,1759137051060,-480.0,0.00027397,7]
[388378382,1759137051069,-480.0,0.00027397,7]
[388378383,1759137051079,-480.0,0.00027397,7]
[388378384,1759137051089,-480.0,0.00027397,7]
[388378385,1759137051099,-480.0,0.00027397,7]
[388378386,1759137051108,-480.0,0.00027397,7]
[388378387,1759137051118,-480.0,0.00027397,7]
[388378388,1759137051127,-480.0,0.00027397,7]
[388378389,1759137051137,-480.0,0.00027397,7]
[388378390,1759137051146,-480.0,0.00027397,7]
[388378391,1759137051153,-480.0,0.00027397,7]
[388378392,1759137051161,-480.0,0.00027397,7]
[388378393,1759137051169,-480.0,0.00027397,7]
[388378394,1759137051178,-480.0,0.00027397,7]
[388378395,1759137051187,-148.53066825,0.00027397,7]
[388378396,1759137051603,-331.46933175,0.00027397,7]
[388378397,1759137051618,-480.0,0.00027397,7]
[388378398,1759137051633,-631.87,0.00027397,7]
[388378399,1759137051646,-1456.66,0.00027397,7]
[388378400,1759137051660,-480.0,0.00027397,7]
[388378401,1759137051673,-480.0,0.00027397,7]
[388378402,1759137051686,-480.0,0.00027397,7]
[388378403,1759137051699,-480.0,0.00027397,7]
[388378404,1759137051713,-626.2,0.00027397,7]
[388378405,1759137051725,-480.0,0.00027397,7]
[388378406,1759137051738,-1677.83,0.00027397,7]
[388378407,1759137051751,-500.0,0.00027397,7]
[388378408,1759137051764,-480.0,0.00027397,7]
[388378409,1759137051779,-510.6,0.00027397,7]
[388378410,1759137051793,-646.79,0.00027397,7]
[388378411,1759137051807,-480.0,0.00027397,7]
[388378412,1759137051821,-480.0,0.00027397,7]
[388378413,1759137051835,-480.0,0.00027397,7]
[388378414,1759137051850,-480.0,0.00027397,7]
[388378415,1759137051866,-480.0,0.00027397,7]
[388378416,1759137051879,-1300.04,0.00027397,7]
[388378417,1759137051895,-480.0,0.00027397,7]
[388378418,1759137051914,-480.0,0.00027397,7]
[388378419,1759137051929,-480.0,0.00027397,7]
[388378420,1759137051944,-532.84275469,0.00027397,7]
[388378421,1759137051959,-480.0,0.00027397,7]
[388378422,1759137051974,-480.0,0.00027397,7]
[388378423,1759137051989,-480.0,0.00027397,7]
[388378424,1759137052002,-899.23,0.00027397,7]
[388378425,1759137052016,-480.0,0.00027397,7]
[388378426,1759137052029,-480.0,0.00027397,7]
[388378427,1759137052042,-480.0,0.00027397,7]
[388378428,1759137052056,-480.0,0.00027397,7]
[388378429,1759137052071,-480.0,0.00027397,7]
[388378430,1759137052085,-490.83,0.00027397,7]
[388378431,1759137052099,-480.0,0.00027397,7]
[388378432,1759137052112,-628.29,0.00027397,7]
[388378433,1759137052125,-480.0,0.00027397,7]
[388378434,1759137052138,-830.73,0.00027397,7]
[388378435,1759137052151,-480.0,0.00027397,7]
[388378436,1759137052163,-480.0,0.00027397,7]
[388378437,1759137052176,-1432.11,0.00027397,7]
[388378438,1759137052189,-480.0,0.00027397,7]
[388378439,1759137052203,-480.0,0.00027397,7]
[388378440,1759137052216,-480.0,0.00027397,7]
[388378441,1759137052229,-480.0,0.00027397,7]
[388378442,1759137052243,-764.39,0.00027397,7]
[388378443,1759137052267,-493.62576537,0.00027397,7]
[388378444,1759137052289,-480.0,0.00027397,7]
[388378445,1759137052303,-480.0,0.00027397,7]
[388378446,1759137052316,-699.38,0.00027397,7]
[388378447,1759137052331,-932.24,0.00027397,7]
[388378448,1759137052343,-480.0,0.00027397,7]
[388378449,1759137052356,-615.48956978,0.00027397,7]
[388378450,1759137052369,-3058.1,0.00027397,7]
[388378451,1759137052382,-480.0,0.00027397,7]
[388378452,1759137052394,-480.0,0.00027397,7]
[388378453,1759137052404,-511.37387211,0.00027397,7]
[388378454,1759137052413,-369.23758118,0.00027397,7]
[388378455,1759137052423,-487.52,0.00027397,7]
[388378456,1759137052432,-480.0,0.00027397,7]
[388378457,1759137052441,-651.82,0.00027397,7]
[388378458,1759137052452,-480.0,0.00027397,7]
[388378459,1759137052461,-906.85,0.00027397,7]
[388378460,1759137052469,-1321.99,0.00027397,7]
[388378461,1759137052476,-480.0,0.00027397,7]
[388378462,1759137052483,-912.51,0.00027397,7]
[388378463,1759137052490,-480.0,0.00027397,7]
[388378464,1759137052497,-480.0,0.00027397,7]
[388378465,1759137052504,-690.42,0.00027397,7]
[388378466,1759137052513,-480.0,0.00027397,7]
[388378467,1759137052520,-698.54,0.00027397,7]
[388378468,1759137052528,-973.47,0.00027397,7]
[388378469,1759137052534,-569.81,0.00027397,7]
[388378470,1759137052540,-679.6,0.00027397,7]
[388378471,1759137052547,-480.0,0.00027397,7]
[388378472,1759137052553,-663.35,0.00027397,7]
[388378473,1759137052563,-480.0,0.00027397,7]
[388378474,1759137052572,-1053.45,0.00027397,7]
[388378475,1759137052583,-480.0,0.00027397,7]
[388378476,1759137052592,-480.0,0.00027397,7]
[388378477,1759137052601,-480.0,0.00027397,7]
[388378478,1759137052611,-710.9,0.00027397,7]
[388378479,1759137052620,-558.06,0.00027397,7]
[388378480,1759137052629,-480.0,0.00027397,7]
[388378481,1759137052639,-770.01,0.00027397,7]
[388378482,1759137052648,-480.0,0.00027397,7]
[388378483,1759137052977,-869.18,0.00027397,7]
[388378484,1759137052997,-480.0,0.00027397,7]
[388378485,1759137053011,-480.0,0.00027397,7]
[388378486,1759137053021,-480.0,0.00027397,7]
[388378487,1759137053030,-480.0,0.00027397,7]
[388378488,1759137053039,-480.0,0.00027397,7]
[388378489,1759137053049,-282.47934986,0.00027397,7]
[388378490,1759137053059,-480.0,0.00027397,7]
[388378491,1759137053069,-480.0,0.00027397,7]
[388378492,1759137053078,-155.95996062,0.00027397,7]
[388378493,1759137053087,-1000.0,0.00027397,7]
[388378494,1759137053097,-500.0,0.00027397,7]
[388378495,1759137053107,-221.26905103,0.00027397,7]
[388378496,1759137053117,-480.0,0.00027397,7]
[388378497,1759137053126,-904.54,0.00027397,7]
[388378498,1759137053135,-480.0,0.00027397,7]
[388378499,1759137053145,-480.0,0.00027397,7]
[388378500,1759137053155,-480.0,0.00027397,7]
[388378501,1759137053165,-1008.02,0.00027397,7]
[388378502,1759137053174,-480.0,0.00027397,7]
[388378503,1759137053183,-480.0,0.00027397,7]
[388378504,1759137053193,-973.27,0.00027397,7]
[388378505,1759137053202,-480.0,0.00027397,7]
[388378506,1759137053211,-483.4339518,0.00027397,7]
[388378507,1759137053220,-480.0,0.00027397,7]
[388378508,1759137053229,-480.0,0.00027397,7]
[388378509,1759137053238,-584.24,0.00027397,7]
[388378510,1759137053247,-480.0,0.00027397,7]
[388378511,1759137053257,-985.1,0.00027397,7]
[388378512,1759137053266,-480.0,0.00027397,7]
[388378513,1759137053277,-480.0,0.00027397,7]
[388378514,1759137053286,-480.0,0.00027397,7]
[388378515,1759137053295,-857.74,0.00027397,7]
[388378516,1759137053304,-480.0,0.00027397,7]
[388378517,1759137053314,-2846.66,0.00027397,7]
[388378518,1759137053323,-1035.76,0.00027397,7]
[388378519,1759137053334,-480.0,0.00027397,7]
[388378520,1759137053344,-480.0,0.00027397,7]
[388378521,1759137053353,-480.0,0.00027397,7]
[388378522,1759137053363,-480.0,0.00027397,7]
[388378523,1759137053373,-480.0,0.00027397,7]
[388378524,1759137053383,-887.91,0.00027397,7]
[388378525,1759137053393,-480.0,0.00027397,7]
[388378526,1759137053403,-480.0,0.00027397,7]
[388378527,1759137053412,-480.0,0.00027397,7]
[388378528,1759137053421,-771.93,0.00027397,7]
[388378529,1759137053431,-480.0,0.00027397,7]
[388378530,1759137053442,-480.0,0.00027397,7]
[388378531,1759137053452,-480.0,0.00027397,7]
[388378532,1759137053462,-480.0,0.00027397,7]
[388378533,1759137053471,-480.0,0.00027397,7]
[388378534,1759137053481,-480.0,0.00027397,7]
[388378535,1759137053491,-480.0,0.00027397,7]
[388378536,1759137053501,-748.09,0.00027397,7]
[388378537,1759137053511,-480.0,0.00027397,7]
[388378538,1759137053520,-926.52,0.00027397,7]
[388378539,1759137053529,-2142.91,0.00027397,7]
[388378540,1759137053539,-480.0,0.00027397,7]
[388378541,1759137053549,-500.0,0.00027397,7]
[388378542,1759137053558,-480.0,0.00027397,7]
[388378543,1759137053567,-480.0,0.00027397,7]
[388378544,1759137053578,-879.57,0.00027397,7]
[388378545,1759137053587,-1460.33,0.00027397,7]
[388378546,1759137053596,-480.0,0.00027397,7]
[388378547,1759137053605,-893.68,0.00027397,7]
[388378548,1759137053614,-480.0,0.00027397,7]
[388378549,1759137053623,-480.0,0.00027397,7]
[388378550,1759137053632,-480.0,0.00027397,7]
[388378551,1759137053642,-522.41,0.00027397,7]
[388378552,1759137053651,-480.0,0.00027397,7]
[388378553,1759137053660,-315.90706961,0.00027397,7]
[388378554,1759137053670,-249.11112423,0.00027397,7]
[388378555,1759137053680,-1123.64,0.00027397,7]
[388378556,1759137053690,-751.38,0.00027397,7]
[388378557,1759137053699,-1123.64,0.00027397,7]
[388378558,1759137053708,-1123.64,0.00027397,7]
[388378559,1759137053718,-1123.64,0.00027397,7]
[388378560,1759137053728,-1123.64,0.00027397,7]
[388378561,1759137053737,-1123.64,0.00027397,7]
[388378562,1759137053747,-480.0,0.00027397,7]
[388378563,1759137053756,-1123.64,0.00027397,7]
[388378564,1759137053765,-449.33448472,0.00027397,7]
[388378565,1759137053774,-480.0,0.00027397,7]
[388378566,1759137053783,-1123.64,0.00027397,7]
[388378567,1759137053793,-1123.64,0.00027397,7]
[388378568,1759137053802,-1123.64,0.00027397,7]
[388378569,1759137053811,-1123.64,0.00027397,7]
[388378570,1759137053820,-1123.64,0.00027397,7]
[388378571,1759137053829,-1123.64,0.00027397,7]
[388378572,1759137053839,-1123.64,0.00027397,7]
[388378573,1759137053848,-1123.64,0.00027397,7]
[388378574,1759137053859,-1009.02,0.00027397,7]
[388378575,1759137053870,-1123.64,0.00027397,7]
[388378576,1759137053880,-1123.64,0.00027397,7]
[388378577,1759137053891,-480.0,0.00027397,7]
[388378578,1759137053908,-1123.64,0.00027397,7]
[388378579,1759137053919,-1123.64,0.00027397,7]
[388378580,1759137053929,-1123.64,0.00027397,7]
[388378581,1759137053940,-1123.64,0.00027397,7]
[388378582,1759137053951,-1123.64,0.00027397,7]
[388378583,1759137053963,-480.0,0.00027397,7]
[388378584,1759137053973,-1123.64,0.00027397,7]
[388378585,1759137053983,-1123.85083042,0.00027397,7]
[388378586,1759137053993,-480.0,0.00027397,7]
[388378587,1759137054002,-735.71,0.00027397,7]
[388378588,1759137054012,-738.48,0.00027397,7]
[388378589,1759137054021,-480.0,0.00027397,7]
[388378590,1759137054031,-592.46,0.00027397,7]
[388378591,1759137054040,-480.0,0.00027397,7]
[388378592,1759137054051,-840.11,0.00027397,7]
[388378593,1759137054061,-480.0,0.00027397,7]
[388378594,1759137054072,-1547.89,0.00027397,7]
[388378595,1759137054082,-1071.16,0.00027397,7]
[388378596,1759137054092,-480.0,0.00027397,7]
[388378597,1759137054103,-480.0,0.00027397,7]
[388378598,1759137054114,-502.45,0.00027397,7]
[388378599,1759137054126,-313.4461521,0.00027397,7]
[388378600,1759137054137,-571.04,0.00027397,7]
[388378601,1759137054147,-480.0,0.00027397,7]
[388378602,1759137054156,-755.6,0.00027397,7]
[388378603,1759137054167,-530.14,0.00027397,7]
[388378604,1759137054176,-480.0,0.00027397,7]
[388378605,1759137054186,-1540.07,0.00027397,7]
[388378606,1759137054195,-525.3,0.00027397,7]
[388378607,1759137054205,-591.15,0.00027397,7]
[388378608,1759137054215,-480.0,0.00027397,7]
[388378609,1759137054225,-902.1,0.00027397,7]
[388378610,1759137054235,-480.0,0.00027397,7]
[388378611,1759137054244,-480.0,0.00027397,7]
[388378612,1759137054253,-1888.16,0.00027397,7]
[388378613,1759137054263,-798.74,0.00027397,7]
[388378614,1759137054273,-480.0,0.00027397,7]
[388378615,1759137054283,-480.0,0.00027397,7]
[388378616,1759137054293,-480.0,0.00027397,7]
[388378617,1759137054303,-480.0,0.00027397,7]
[388378618,1759137054313,-480.0,0.00027397,7]
[388378619,1759137054322,-977.93,0.00027397,7]
[388378620,1759137054332,-527.99,0.00027397,7]
[388378621,1759137054342,-480.0,0.00027397,7]
[388378622,1759137054351,-829.51,0.00027397,7]
[388378623,1759137054360,-480.0,0.00027397,7]
[388378624,1759137054370,-550.02,0.00027397,7]
[388378625,1759137054379,-480.0,0.00027397,7]
[388378626,1759137054389,-1555.96,0.00027397,7]
[388378627,1759137054399,-634.52,0.00027397,7]
[388378628,1759137054408,-480.0,0.00027397,7]
[388378629,1759137054418,-484.09174667,0.00027397,7]
[388378630,1759137054427,-532.51,0.00027397,7]
[388378631,1759137054437,-543.41,0.00027397,7]
[388378632,1759137054447,-480.0,0.00027397,7]
[388378633,1759137054456,-480.0,0.00027397,7]
[388378634,1759137054466,-480.0,0.00027397,7]
[388378635,1759137054477,-694.56,0.00027397,7]
[388378636,1759137054486,-480.0,0.00027397,7]
[388378637,1759137054497,-480.0,0.00027397,7]
[388378638,1759137054506,-480.0,0.00027397,7]
[388378639,1759137054515,-480.0,0.00027397,7]
[388378640,1759137054525,-480.0,0.00027397,7]
[388378641,1759137054535,-480.0,0.00027397,7]
[388378642,1759137054544,-864.4,0.00027397,7]
[388378643,1759137054553,-551.42,0.00027397,7]
[388378644,1759137054563,-480.0,0.00027397,7]
[388378645,1759137054573,-481.09121957,0.00027397,7]
[388378646,1759137054582,-423.91916366,0.00027397,7]
[388378647,1759137054592,-236.52747688,0.00027397,7]
[388378648,1759137054614,-243.47252312,0.00027397,7]
[388378649,1759137054623,-608.87,0.00027397,7]
[388378650,1759137054633,-882.11,0.00027397,7]
[388378651,1759137054643,-84.60164846,0.00027397,7]
[388378652,1759137054654,-761.29835154,0.00027397,7]
[388378653,1759137054663,-545.53,0.00027397,7]
[388378654,1759137054672,-480.0,0.00027397,7]
[388378655,1759137054681,-812.92,0.00027397,7]
[388378656,1759137054690,-139.6597408,0.00027397,7]
[388378657,1759137054701,-340.3402592,0.00027397,7]
[388378658,1759137054710,-480.0,0.00027397,7]
[388378659,1759137054719,-943.15,0.00027397,7]
[388378660,1759137054728,-316.50767449,0.00027397,7]
[388378661,1759137054739,-163.49232551,0.00027397,7]
[388378662,1759137054748,-482.9373159,0.00027397,7]
[388378663,1759137054757,-1023.57,0.00027397,7]
[388378664,1759137054766,-702.44,0.00027397,7]
[388378665,1759137054775,-874.34,0.00027397,7]
[388378666,1759137054784,-470.3353579,0.00027397,7]
[388378667,1759137055100,-6522.14539869,0.00026588,2]
[388378668,1759137055112,-4880.99999994,0.00026588,2]
[388378669,1759137055467,-15980.34958081,0.00026588,2]
[388378670,1759137055478,-801.94659396,0.00026588,2]
[388378671,1759137130321,658.09186383,0.00025201,2]
[388378675,1759137264115,786.0937426,0.00024757,2]
[388378680,1759137711040,640.544612,0.00024525,2]
[388378681,1759137763356,500.0,0.000252,2]
[388378683,1759137853211,160.0,0.00025201,2]
[388378685,1759137871577,320.0,0.00025201,2]
[388378686,1759137921316,1857.95955584,0.00024497,2]
[388378687,1759137921339,8234.95980916,0.00024497,2]
[388378692,1759138001121,-300.0,0.00025452,2]
[388378693,1759138001142,-300.0,0.00025453,2]
[388378694,1759138001162,-22.48089926,0.00025453,2]
[388378735,1759138122200,150.99999932,0.00025,5]
[388378738,1759138125072,1614.05019152,0.00019063,7]
[388378739,1759138125094,10000.01,0.00019063,7]
[388378740,1759138125117,10000.01,0.00019063,7]
[388378741,1759138125138,10000.01,0.00019063,7]
[388378742,1759138125160,2584.28544201,0.00019063,7]
[388378743,1759138125186,260.22742825,0.00015,2]
[388378761,1759138218567,1483.3837163,0.00024432,2]
[388378798,1759138232178,-1200.0,0.00025399,2]
[388378800,1759138232188,-135.13735634,0.000254,2]
[388378802,1759138232201,-5868.40869431,0.000254,2]
[388378804,1759138232210,-300.0,0.00025416,2]
[388378806,1759138232219,-300.0,0.00025416,2]
[388378808,1759138232229,-300.0,0.00025416,2]
[388378810,1759138232238,-300.0,0.00025416,2]
[388378812,1759138232247,-6003.54605061,0.00025417,2]
[388378814,1759138232256,-715.82917873,0.00025434,2]
[388378818,1759138232286,-3976.99999999,0.00025434,2]
[388378820,1759138232297,-1310.71687189,0.00025434,2]
[388378823,1759138232306,-695.78312811,0.00025445,10]
[388378826,1759138232316,-95.12687189,0.00025445,10]
[388378828,1759138232326,-487.04084846,0.00025449,2]
[388378830,1759138232335,-242.09815506,0.00025449,2]
[388378832,1759138232347,-30.96182872,0.00025449,2]
[388378834,1759138232357,-229.80532099,0.00025449,2]
[388378836,1759138232366,-209.44546517,0.0002545,2]
[388378838,1759138232377,-1479.80351842,0.0002545,2]
[388378869,1759138238137,-4314.29706702,0.0002545,2]
[388378870,1759138238147,-221.33496618,0.00025452,2]
[388378871,1759138238156,-326.57012244,0.00025452,2]
[388378872,1759138238166,-500.0,0.00025452,2]
[388378873,1759138238175,-500.0,0.00025452,2]
[388378874,1759138238185,-500.0,0.00025452,2]
[388378875,1759138238194,-500.0,0.00025452,2]
[388378876,1759138238203,-500.0,0.00025452,2]
[388378877,1759138238212,-500.0,0.00025452,2]
[388378878,1759138238222,-500.0,0.00025452,2]
[388378879,1759138238231,-500.0,0.00025452,2]
[388378880,1759138238241,-292.08956436,0.00025452,2]
[388378881,1759138238251,-500.0,0.00025452,2]
[388378882,1759138238260,-500.0,0.00025452,2]
[388378883,1759138238270,-500.0,0.00025452,2]
[388378884,1759138238279,-49123.77991916,0.00025453,2]
[388378885,1759138238288,-56723.7611444,0.00025454,2]
[388378886,1759138238298,-1200.0,0.00025455,2]
[388378887,1759138238307,-6003.54605061,0.00025467,2]
[388378888,1759138238317,-500.0,0.00025533,2]
[388378889,1759138238327,-56723.7611444,0.00025537,2]
[388378890,1759138238337,-348.83,0.00025537,3]
[388378891,1759138238347,-524.72,0.00025537,3]
[388378892,1759138238356,-2164.08,0.00025546,3]
[388378893,1759138238366,-1082.04,0.00025546,3]
[388378894,1759138238375,-541.02,0.00025546,3]
[388378895,1759138238385,-270.51,0.00025546,3]
[388378896,1759138238394,-1107.16,0.00025546,3]
[388378897,1759138238404,-553.58,0.00025546,3]
[388378898,1759138238413,-276.79,0.00025546,3]
[388378899,1759138238423,-830.42,0.00025546,3]
[388378900,1759138238433,-226895.044578,0.00025546,2]
[388378901,1759138238442,-439074.0114441,0.00025549,2]
[388378902,1759138238451,-889.03933473,0.00025551,2]
[388378903,1759138238460,-151.0,0.00025551,2]
[388378904,1759138238469,-250.0,0.00025551,2]
[388378905,1759138238479,-250.0,0.00025551,2]
[388378906,1759138238487,-250.0,0.00025551,2]
[388378907,1759138238497,-250.0,0.00025551,2]
[388378908,1759138238507,-250.0,0.00025551,2]
[388378909,1759138238516,-250.0,0.00025551,2]
[388378910,1759138238525,-151.0,0.00025551,2]
[388378911,1759138238535,-250.0,0.00025551,2]
[388378912,1759138238544,-250.0,0.00025551,2]
[388378913,1759138238553,-500.0,0.00025551,2]